bitfinex/quotes_SOLUSD_20251024
["timestamp","ask_amount","ask_price","bid_price","bid_amount"]
[1761300652557,46.50470848,191.88,191.86,0.69]
[1761300655057,41.29176499,191.88,191.86,0.69]
[1761300656960,5.21176499,191.88,191.86,0.69]
[1761300657162,41.29176499,191.88,191.86,0.69]
[1761300659666,5.21176499,191.88,191.86,0.69]
[1761300659847,41.29176499,191.88,191.86,0.69]
[1761300660047,5.21176499,191.88,191.86,0.69]
[1761300660264,41.29176499,191.88,191.86,0.69]
[1761300661142,5.21176499,191.88,191.86,0.69]
[1761300661668,5.21294349,191.87,191.86,0.69]
[1761300664151,5.21294349,191.87,191.86,5.90213384]
[1761300664355,36.08,191.91,191.86,55.90213384]
[1761300664563,36.08,191.91,191.87,0.69]
[1761300664758,15.64333202,191.9,191.87,0.69]
[1761300665470,15.64333202,191.9,191.88,50.0]
[1761300665670,145.49055136,191.92,191.88,50.0]
[1761300665858,15.64333202,191.91,191.89,0.69]
[1761300666460,109.41052902,191.92,191.89,0.69]
[1761300666770,52.32333202,191.95,191.9,50.0]
[1761300666978,36.68,191.95,191.9,50.0]
[1761300667142,36.68,191.95,191.91,0.69]
[1761300667344,5.20941862,191.96,191.91,0.69]
[1761300667547,5.80941862,191.96,191.91,0.69]
[1761300668067,36.06,191.95,191.91,0.69]
[1761300668366,5.20975546,191.95,191.91,0.69]
[1761300668565,36.06,191.94,191.91,0.69]
[1761300668861,5.20975546,191.95,191.91,0.69]
[1761300669068,41.26975546,191.95,191.91,0.69]
[1761300669668,5.20975546,191.95,191.91,0.69]
[1761300669874,41.26975546,191.95,191.91,0.69]
[1761300670267,5.20975546,191.95,191.91,0.69]
[1761300670465,41.26975546,191.95,191.91,0.69]
[1761300671162,5.20975546,191.95,191.91,0.69]
[1761300671670,5.20975546,191.95,191.91,5.90074973]
[1761300672174,5.20975546,191.95,191.92,0.66]
[1761300672861,5.20914726,191.97,191.92,55.87039499]
[1761300673072,41.26914726,191.97,191.93,0.66]
[1761300673464,5.20914726,191.97,191.93,0.66]
[1761300673783,41.26914726,191.97,191.93,0.66]
[1761300673973,5.20914726,191.97,191.93,0.66]
[1761300674276,36.06,191.97,191.93,5.87019444]
[1761300674575,36.06,191.97,191.94,0.66]
[1761300675150,36.06,191.97,191.94,5.86985528]
[1761300675350,109.40867858,191.99,191.94,5.86985528]
[1761300675574,145.46867858,191.99,191.95,0.66]
[1761300678576,5.2084079,192.0,191.95,5.86963729]
[1761300678775,5.2084079,192.0,191.96,0.66]
[1761300679380,41.8684079,192.0,191.96,0.66]
[1761300680169,41.2684079,192.0,191.96,0.66]
[1761300682666,5.2084079,192.0,191.96,0.66]
[1761300683878,5.2084079,192.0,191.96,5.86938021]
[1761300684072,5.30810311,192.01,191.96,5.86938021]
[1761300684264,5.30810311,192.01,191.97,0.66]
[1761300686278,0.6,192.0,191.95,11.17772441]
[1761300686671,0.6,192.0,191.96,0.66]
[1761300686873,41.94810311,192.01,191.96,0.66]
[1761300687386,5.90810311,192.01,191.96,5.86940557]
[1761300687682,41.34810311,192.01,191.96,5.86940557]
[1761300687987,5.30810311,192.01,191.97,0.66]
[1761300688374,41.34810311,192.01,191.97,0.66]
[1761300688685,5.30810311,192.01,191.97,0.66]
[1761300689095,5.90810311,192.01,191.97,0.66]
[1761300689266,41.94810311,192.01,191.97,0.66]
[1761300689467,41.34810311,192.01,191.97,0.66]
[1761300689687,5.30810311,192.01,191.97,0.66]
[1761300689868,5.80835145,192.0,191.96,5.85940557]
[1761300690489,5.20835145,192.0,191.97,0.65]
[1761300692000,0.1,192.01,191.97,0.65]
[1761300692587,5.30810062,192.01,191.97,5.85914314]
[1761300693064,5.30810062,192.01,191.98,0.65]
[1761300693261,0.1,192.01,191.98,0.65]
[1761300697297,0.1,192.01,192.0,50.0]
[1761300697669,0.1,192.01,192.0,50.65]
[1761300697870,0.1,192.01,192.0,55.85833333]
[1761300698891,0.1,192.01,192.0,57.94237219]
[1761300699388,0.1,192.01,192.0,7.94237219]
[1761300700084,0.1,192.01,192.0,57.94237219]
[1761300702895,0.1,192.01,191.99,5.86852734]
[1761300703202,0.1,192.01,192.0,0.66]
[1761300703402,0.1,192.01,191.98,5.86882527]
[1761300703696,0.1,192.01,191.99,0.66]
[1761300705002,0.1,192.01,191.98,0.66]
[1761300705199,5.90808534,192.01,191.96,55.86936225]
[1761300705703,5.90808534,192.01,191.96,5.86936225]
[1761300706006,5.90808534,192.01,191.97,0.66]
[1761300706297,5.30808534,192.01,191.97,0.66]
[1761300707407,0.6,192.0,191.92,5.21044833]
[1761300707708,5.90808534,192.0,191.94,0.66]
[1761300707913,5.90808534,192.0,191.91,0.66]
[1761300708105,36.64,191.99,191.91,0.66]
[1761300708490,16.23843928,191.98,191.91,0.66]
[1761300708991,5.80914726,191.97,191.91,0.66]
[1761300709686,21.44840178,191.97,191.91,0.66]
[1761300710008,21.44840178,191.97,191.88,100.0]
[1761300710009,0.6,191.96,191.88,0.66]
[1761300710389,15.64170077,191.95,191.88,0.66]
[1761300710585,36.04,191.94,191.88,0.66]
[1761300710891,5.21023289,191.93,191.88,0.66]
[1761300711089,41.85023289,191.93,191.86,0.66]
[1761300711284,0.6,191.92,191.86,0.66]
[1761300712098,0.6,191.92,191.85,1.0]
[1761300712496,15.64414778,191.91,191.85,1.0]
[1761300712904,5.21131898,191.89,191.85,1.0]
[1761300713304,5.81131898,191.89,191.85,1.0]
[1761300713897,5.81131898,191.89,191.85,1.66]
[1761300714099,5.21131898,191.89,191.85,1.66]
[1761300714416,5.21131898,191.89,191.86,0.66]
[1761300714608,5.21110383,191.9,191.86,0.66]
[1761300716315,5.81110383,191.9,191.86,0.66]
[1761300718010,41.85110383,191.9,191.86,0.66]
[1761300719017,41.25110383,191.9,191.85,1.0]
[1761300719196,41.85110383,191.9,191.85,1.66]
[1761300719396,41.85110383,191.9,191.86,0.66]
[1761300720403,41.25110383,191.9,191.86,0.66]
[1761300721289,41.85110383,191.9,191.86,0.66]
[1761300721913,41.25110383,191.9,191.86,0.66]
[1761300722317,41.85110383,191.9,191.86,0.66]
[1761300722519,41.25110383,191.9,191.86,0.66]
[1761300722821,41.85110383,191.9,191.85,1.0]
[1761300722994,41.85110383,191.9,191.85,1.66]
[1761300723607,41.85110383,191.9,191.86,0.66]
[1761300724422,41.25110383,191.9,191.86,0.66]
[1761300729828,41.85110383,191.9,191.86,0.66]
[1761300730004,41.25110383,191.9,191.86,0.66]
[1761300731122,5.21159057,191.88,191.85,1.0]
[1761300731625,5.21159057,191.88,191.86,0.71]
[1761300733239,5.21131898,191.89,191.86,0.71]
[1761300735936,41.25104887,191.9,191.86,0.71]
[1761300736340,36.04,191.9,191.87,50.0]
[1761300737112,36.04,191.9,191.88,0.71]
[1761300737312,41.25113227,191.9,191.88,0.71]
[1761300737821,41.25113227,191.9,191.85,56.21237441]
[1761300738011,41.25113227,191.9,191.87,0.71]
[1761300740748,5.21069364,191.92,191.87,55.92182422]
[1761300740939,41.27069364,191.92,191.87,55.92182422]
[1761300741251,41.87069364,191.92,191.88,0.71]
[1761300741542,0.6,191.91,191.87,0.71]
[1761300741744,41.87069364,191.92,191.88,0.71]
[1761300742045,36.06,191.91,191.88,0.71]
[1761300743138,36.06,191.9,191.88,0.71]
[1761300746335,5.21050437,191.92,191.88,0.71]
[1761300746554,36.06,191.91,191.88,0.71]
[1761300748451,5.21050437,191.92,191.88,0.71]
[1761300748754,36.06,191.91,191.88,0.71]
[1761300750547,41.2708489,191.91,191.88,0.71]
[1761300756741,36.06,191.91,191.88,0.71]
[1761300763176,36.04,191.95,191.89,50.0]
[1761300763349,0.6,191.96,191.89,50.0]
[1761300763548,36.04,191.95,191.9,0.71]
[1761300764244,41.24984937,191.95,191.91,50.0]
[1761300764653,36.04,191.95,191.92,0.71]
[1761300765042,41.24949771,191.96,191.92,0.71]
[1761300766457,5.20949771,191.96,191.92,0.71]
[1761300766653,36.04,191.95,191.92,0.71]
[1761300766867,41.24949771,191.96,191.92,0.71]
[1761300768164,140.10164262,191.99,191.92,5.92049037]
[1761300768371,36.64,191.98,191.92,5.92049037]
[1761300768571,36.64,191.98,191.93,0.71]
[1761300769477,41.84887592,191.98,191.93,0.71]
[1761300769677,41.84887592,191.98,191.93,50.71]
[1761300770162,41.84887592,191.98,191.94,0.71]
[1761300771180,5.80887592,191.98,191.94,0.71]
[1761300771366,41.249207,191.97,191.94,0.71]
[1761300774378,41.249207,191.97,191.9,0.71]
[1761300774379,0.6,191.96,191.9,0.71]
[1761300774673,36.04,191.95,191.88,0.71]
[1761300775057,0.6,191.94,191.88,0.71]
[1761300775258,36.04,191.93,191.88,0.71]
[1761300775456,5.81022487,191.94,191.88,5.92151301]
[1761300775671,36.04,191.93,191.88,5.92151301]
[1761300775870,36.04,191.93,191.89,0.71]
[1761300776270,36.04,191.93,191.89,50.71]
[1761300776457,36.04,191.93,191.9,0.71]
[1761300778985,36.04,191.93,191.9,5.92097649]
[1761300779483,36.04,191.93,191.91,0.71]
[1761300779870,36.04,191.93,191.9,5.21097649]
[1761300780073,36.04,191.93,191.91,0.71]
[1761300781568,0.6,191.92,191.88,0.71]
[1761300782093,41.25031716,191.93,191.88,0.71]
[1761300782265,41.85031716,191.93,191.88,0.71]
[1761300785595,5.81056231,191.92,191.88,0.71]
[1761300786693,15.64170077,191.91,191.88,0.71]
[1761300788910,36.64,191.9,191.85,1.71]
[1761300789274,36.04,191.9,191.85,1.71]
[1761300789478,0.6,191.89,191.85,1.71]
[1761300789687,15.64414778,191.89,191.86,0.71]
[1761300790081,20.85555765,191.89,191.86,0.71]
[1761300790601,5.21140987,191.89,191.86,0.71]
[1761300790793,5.21259608,191.88,191.86,0.71]
[1761300792790,5.21259608,191.88,191.85,1.0]
[1761300793098,10.4241882,191.88,191.85,1.68]
[1761300794203,5.21159212,191.88,191.85,1.68]
[1761300794380,15.64414778,191.87,191.85,1.68]
[1761300795828,26.44623696,192.1,191.86,0.68]
[1761300795829,0.6,191.95,191.86,0.68]
[1761300796131,15.64088527,191.92,191.86,0.68]
[1761300796583,15.64088527,191.92,191.87,50.0]
[1761300796905,15.64088527,191.92,191.88,0.68]
[1761300798621,15.64088527,191.92,191.88,5.89158732]
[1761300798787,15.64088527,191.92,191.89,0.68]
[1761300799421,5.21023853,191.93,191.89,0.68]
[1761300799586,15.64088527,191.92,191.89,0.68]
[1761300800001,5.21023853,191.93,191.89,0.68]
[1761300800397,15.64088527,191.92,191.89,0.68]
[1761300801226,5.21032634,191.93,191.89,0.68]
[1761300801715,20.85121161,191.93,191.89,0.68]
[1761300803913,15.64088527,191.93,191.89,50.68]
[1761300804098,15.64088527,191.93,191.9,0.68]
[1761300805633,5.20970385,191.95,191.9,0.68]
[1761300805806,15.63925452,191.94,191.9,0.68]
[1761300806014,15.63925452,191.94,191.9,5.89102596]
[1761300806523,15.63925452,191.94,191.91,0.68]
[1761300808519,20.84926124,191.94,191.91,0.68]
[1761300813809,15.63925452,191.94,191.91,0.68]
[1761300817019,41.24946968,191.96,191.91,55.89072295]
[1761300817211,15.63762412,191.96,191.91,55.89072295]
[1761300817411,15.63762412,191.96,191.92,0.67]
[1761300817734,5.2091938,191.97,191.92,0.67]
[1761300817933,20.84600284,191.97,191.92,0.67]
[1761300818440,15.63680904,191.97,191.93,50.0]
[1761300818920,15.63680904,191.97,191.94,0.67]
[1761300820018,15.63680904,191.97,191.95,50.0]
[1761300820410,15.63680904,191.97,191.96,0.67]
[1761300821212,36.04,192.0,191.96,5.87941862]
[1761300821419,51.67436433,192.0,191.96,5.87941862]
[1761300821617,15.63436433,192.0,191.97,0.69]
[1761300823962,5.30825634,192.01,191.97,5.89911622]
[1761300824152,20.94180593,192.01,191.97,5.89911622]
[1761300824443,20.94180593,192.01,191.98,0.69]
[1761300825018,15.73354959,192.01,191.98,0.69]
[1761300825920,15.73354959,192.01,191.98,5.89884582]
[1761300826116,15.73354959,192.01,191.97,50.0]
[1761300826117,15.73354959,192.01,191.99,0.69]
[1761300826320,0.1,192.01,191.99,0.69]
[1761300836136,0.6,192.0,191.93,50.0]
[1761300836354,16.23680904,192.0,191.92,55.90031488]
[1761300836655,16.23680904,192.0,191.92,50.0]
[1761300836858,0.6,191.99,191.93,50.69]
[1761300837152,16.23680904,191.99,191.93,50.69]
[1761300837456,16.23680904,191.99,191.94,0.69]
[1761300837635,0.6,191.98,191.94,0.69]
[1761300837954,16.23680904,191.98,191.93,0.69]
[1761300838158,5.20914726,191.97,191.93,0.69]
[1761300838965,15.63680904,191.96,191.93,0.69]
[1761300840856,15.63680904,191.96,191.93,5.90017516]
[1761300841464,15.63680904,191.96,191.94,0.69]
[1761300841956,21.4456897,191.98,191.94,0.69]
[1761300843061,16.23680904,191.98,191.94,0.69]
[1761300843354,5.20872564,191.99,191.94,0.69]
[1761300843538,15.63599405,191.98,191.94,0.69]
[1761300844857,5.80872564,191.99,191.94,0.69]
[1761300845247,21.44471969,191.99,191.94,0.69]
[1761300845450,15.63599405,191.99,191.95,50.0]
[1761300845641,36.12,192.01,191.95,50.0]
[1761300845842,15.63436433,192.0,191.96,0.69]
[1761300846358,5.308203,192.01,191.96,0.69]
[1761300847737,5.308203,192.01,191.97,50.0]
[1761300847938,5.908203,192.01,191.97,50.0]
[1761300848248,5.308203,192.01,191.98,0.69]
[1761300848654,0.1,192.01,191.98,0.69]
[1761300851037,5.90806803,192.01,191.96,0.69]
[1761300852060,5.30806803,192.01,191.96,0.69]
[1761300852558,0.1,192.01,191.99,50.0]
[1761300852939,0.1,192.01,191.99,0.65]
[1761300868767,0.1,192.01,191.98,0.68]
[1761300869073,6.00759166,192.01,191.98,0.68]
[1761300869281,11.21568391,192.01,191.98,0.68]
[1761300876688,11.81568391,192.01,191.98,0.68]
[1761300876869,11.21568391,192.01,191.98,0.68]
[1761300877586,5.30809225,192.01,191.98,0.68]
[1761300879789,5.90809225,192.01,191.97,0.68]
[1761300880869,0.6,192.0,191.97,0.68]
[1761300882083,0.6,192.0,191.96,5.88941862]
[1761300882397,4.45359709,192.0,191.96,5.88941862]
[1761300882591,0.6,192.0,191.96,5.88941862]
[1761300882787,16.62377616,192.01,191.97,0.68]
[1761300883391,17.22377616,192.01,191.97,0.68]
[1761300884482,3.85453965,192.0,191.97,0.68]
[1761300884686,17.22377616,192.01,191.97,0.68]
[1761300884882,3.85466086,192.0,191.97,0.68]
[1761300885098,17.22377616,192.01,191.97,0.68]
[1761300885291,3.85466086,192.0,191.97,0.68]
[1761300885491,17.22377616,192.01,191.97,0.68]
[1761300885676,3.85477753,192.0,191.97,0.68]
[1761300885997,17.22377616,192.01,191.97,0.68]
[1761300886192,3.85477784,192.0,191.97,0.68]
[1761300886400,17.22377616,192.01,191.97,0.68]
[1761300886699,3.85534206,192.0,191.97,0.68]
[1761300886999,17.22377616,192.01,191.97,0.68]
[1761300887197,3.85534206,192.0,191.97,0.68]
[1761300887498,17.22377616,192.01,191.97,0.68]
[1761300887691,9.06442107,192.0,191.97,0.68]
[1761300887888,5.20846416,192.0,191.97,0.68]
[1761300890902,10.51659897,192.01,191.97,0.68]
[1761300891201,3.8583956,192.0,191.97,0.68]
[1761300891400,11.11659897,192.01,191.97,0.68]
[1761300891588,3.85880881,192.0,191.97,0.68]
[1761300891793,11.11659897,192.01,191.97,0.68]
[1761300891980,3.85880881,192.0,191.97,0.68]
[1761300892180,10.51659897,192.01,191.97,0.68]
[1761300892383,9.06727046,192.0,191.97,0.68]
[1761300892700,5.20846165,192.0,191.97,0.68]
[1761300893299,0.6,191.99,191.93,55.21003394]
[1761300893509,0.6,191.99,191.93,50.68]
[1761300893702,5.90846416,191.99,191.93,50.68]
[1761300893887,5.90846416,191.99,191.94,0.68]
[1761300894199,0.6,191.98,191.94,0.68]
[1761300894991,5.80887592,191.98,191.94,0.68]
[1761300896091,9.06664706,191.97,191.94,0.68]
[1761300896294,5.20927921,191.97,191.94,0.68]
[1761300897407,5.20887592,191.98,191.94,0.68]
[1761300899712,5.20887592,191.98,191.94,55.88994785]
[1761300899915,10.51708061,191.99,191.95,0.68]
[1761300900497,5.20861645,191.99,191.95,0.68]
[1761300901009,18.22916666,192.0,191.95,0.68]
[1761300901217,3.85496045,191.99,191.95,0.68]
[1761300903311,9.06366144,191.99,191.95,0.68]
[1761300903519,5.20870099,191.99,191.95,0.68]
[1761300904514,5.20833333,192.0,191.95,0.68]
[1761300904707,3.85446756,191.99,191.95,0.68]
[1761300905012,5.80833333,192.0,191.95,0.68]
[1761300905320,3.85376352,191.99,191.95,0.68]
[1761300905497,9.0625822,191.99,191.95,0.68]
[1761300905699,5.20881868,191.99,191.95,0.68]
[1761300906295,15.73517915,192.01,191.95,0.68]
[1761300906296,0.1,192.01,191.97,50.0]
[1761300906530,0.1,192.01,191.95,55.88964248]
[1761300906702,3.85415865,192.0,191.96,0.68]
[1761300907317,3.85415865,192.0,191.97,50.0]
[1761300907702,9.06259251,192.0,191.98,0.68]
[1761300907897,5.20843386,192.0,191.98,0.68]
[1761300910028,5.20843386,192.0,191.95,50.68]
[1761300910319,5.80843386,192.0,191.96,0.68]
[1761300910520,5.20843386,192.0,191.96,0.68]
[1761300915222,5.20843386,192.0,191.95,50.0]
[1761300915426,5.2088313,191.99,191.96,0.72]
[1761300918634,5.8088313,191.99,191.96,0.72]
[1761300919430,5.80833333,192.0,191.96,0.72]
[1761300925037,5.20833333,192.0,191.96,50.72]
[1761300925536,5.20833333,192.0,191.97,0.72]
[1761300927025,5.80833333,192.0,191.97,0.72]
[1761300928538,5.20833333,192.0,191.97,0.72]
[1761300930532,5.80833333,192.0,191.97,0.72]
[1761300930832,5.20833333,192.0,191.97,0.72]
[1761300936222,0.6,191.99,191.93,0.66]
[1761300936427,36.02,191.98,191.93,0.66]
[1761300936835,0.6,191.97,191.9,0.66]
[1761300937147,0.6,191.97,191.88,136.02]
[1761300937453,0.6,191.97,191.91,0.66]
[1761300937822,0.6,191.97,191.89,0.66]
[1761300938239,15.64088527,191.96,191.89,0.66]
[1761300938445,18.23296519,191.96,191.89,0.66]
[1761300938645,0.6,191.95,191.89,0.66]
[1761300939120,36.62,191.95,191.89,0.66]
[1761300940418,5.80996144,191.94,191.89,0.66]
[1761300940948,5.20996144,191.94,191.89,0.66]
[1761300941246,5.80996144,191.94,191.89,0.66]
[1761300941730,41.82996144,191.94,191.89,0.66]
[1761300941932,5.80996144,191.94,191.89,0.66]
[1761300942647,5.20996144,191.94,191.89,0.66]
[1761300943233,5.80996144,191.94,191.89,0.66]
[1761300943440,0.6,191.93,191.86,5.21211949]
[1761300943632,54.85486505,191.94,191.88,0.66]
[1761300943943,18.83486505,191.94,191.88,0.66]
[1761300944149,54.85486505,191.94,191.88,0.66]
[1761300944337,18.83486505,191.94,191.88,0.66]
[1761300944730,36.62,191.93,191.86,0.66]
[1761300945046,52.26333202,191.93,191.85,51.0]
[1761300945254,0.6,191.92,191.85,51.66]
[1761300945429,0.6,191.92,191.86,0.66]
[1761300945745,36.02,191.91,191.86,0.66]
[1761300946241,36.62,191.91,191.86,0.66]
[1761300946748,13.02664855,191.92,191.86,0.66]
[1761300947048,0.6,191.9,191.86,0.66]
[1761300948048,29.26906027,191.94,191.87,50.0]
[1761300948233,58.9,191.95,191.9,50.0]
[1761300948429,36.02,191.95,191.9,50.0]
[1761300948628,36.02,191.95,191.91,0.66]
[1761300948922,0.6,191.95,191.91,0.66]
[1761300949125,36.62,191.95,191.91,0.66]
[1761300949344,36.02,191.95,191.91,0.66]
[1761300949534,0.6,191.94,191.89,0.66]
[1761300951950,5.21023289,191.93,191.89,0.66]
[1761300952137,5.21023289,191.93,191.86,55.21208262]
[1761300952138,18.23581513,191.93,191.87,0.66]
[1761300952543,18.23581513,191.93,191.88,50.0]
[1761300952944,18.23581513,191.93,191.89,0.66]
[1761300955046,18.83581513,191.93,191.89,0.66]
[1761300955434,0.6,191.92,191.87,0.66]
[1761300956032,0.6,191.92,191.85,1.66]
[1761300956233,0.6,191.92,191.85,1.0]
[1761300956538,16.24496362,191.92,191.85,1.0]
[1761300956950,0.6,191.91,191.85,1.0]
[1761300957155,18.23866597,191.9,191.85,1.66]
[1761300957332,36.02,191.89,191.85,1.66]
[1761300958545,36.62,191.89,191.85,1.66]
[1761300959141,5.21159057,191.88,191.85,1.66]
[1761300961231,5.21159057,191.88,191.86,0.66]
[1761300961557,41.23135795,191.89,191.86,50.66]
[1761300961749,41.23050437,191.92,191.86,50.66]
[1761300961950,41.23050437,191.92,191.87,0.66]
[1761300962153,0.6,191.91,191.87,0.66]
[1761300962452,5.21050437,191.92,191.87,0.66]
[1761300962650,41.23085933,191.91,191.87,0.66]
[1761300965453,41.23085933,191.91,191.88,50.0]
[1761300965858,41.23085933,191.91,191.88,50.66]
[1761300966059,5.21085933,191.91,191.88,50.66]
[1761300966655,54.25735407,191.92,191.88,50.66]
[1761300966836,54.85735407,191.92,191.88,50.66]
[1761300967150,54.25735407,191.92,191.89,0.66]
[1761300967832,5.21050437,191.92,191.89,0.66]
[1761300973353,41.23050437,191.92,191.89,0.66]
[1761300973561,41.83050437,191.92,191.87,0.68]
[1761300973746,41.83050437,191.92,191.86,0.68]
[1761300974059,41.83050437,191.92,191.87,50.0]
[1761300974251,41.83050437,191.92,191.86,0.68]
[1761300974647,5.81050437,191.92,191.86,0.68]
[1761300974850,41.83050437,191.92,191.86,0.68]
[1761300975063,41.23050437,191.92,191.86,0.68]
[1761300975265,41.23050437,191.92,191.87,50.0]
[1761300975435,41.23050437,191.92,191.86,0.68]
[1761300976065,54.25676531,191.92,191.86,0.68]
[1761300976465,54.25676531,191.92,191.87,50.0]
[1761300976663,54.25676531,191.92,191.86,0.68]
[1761300977462,54.25676531,191.92,191.87,50.0]
[1761300977977,54.85676531,191.92,191.88,0.68]
[1761300979473,109.81029856,191.93,191.88,0.68]
[1761300979648,36.02,191.92,191.89,50.0]
[1761300979849,109.81029856,191.93,191.89,50.0]
[1761300980050,110.41029856,191.93,191.89,0.68]
[1761300980556,0.6,191.92,191.85,116.64170077]
[1761300980758,36.62,191.92,191.86,0.68]
[1761300981467,36.62,191.92,191.87,50.0]
[1761300981665,5.21077588,191.91,191.87,50.0]
[1761300981844,5.81077588,191.91,191.87,50.0]
[1761300982046,5.81077588,191.91,191.87,50.68]
[1761300982251,41.83077588,191.91,191.87,50.68]
[1761300983469,41.23125928,191.9,191.87,50.68]
[1761300983763,41.23125928,191.9,191.87,50.0]
[1761300983965,41.23125928,191.9,191.88,0.68]
[1761300984867,5.21077588,191.91,191.88,0.68]
[1761300985045,41.23077588,191.91,191.88,0.68]
[1761300987273,5.21050437,191.92,191.88,0.68]
[1761300987569,36.02,191.91,191.88,0.68]
[1761300987959,36.62,191.91,191.88,0.68]
[1761300988161,36.02,191.91,191.88,0.68]
[1761300988973,5.21104742,191.9,191.88,0.68]
[1761300989176,104.6,191.93,191.89,50.0]
[1761300989551,104.6,191.93,191.9,0.69]
[1761300989865,36.02,191.94,191.9,0.69]
[1761300990371,5.21027041,191.93,191.9,0.69]
[1761300991456,5.21027041,191.93,191.89,50.0]
[1761300991659,5.81027041,191.93,191.89,0.69]
[1761300991975,5.21027041,191.93,191.87,91.23179069]
[1761300992174,41.23027041,191.93,191.9,0.69]
[1761300992362,5.21027041,191.93,191.9,0.69]
[1761300992573,41.23027041,191.93,191.9,0.69]
[1761300993576,5.20996144,191.94,191.9,0.69]
[1761300993758,36.02,191.93,191.9,0.69]
[1761300994777,5.21050437,191.92,191.9,0.69]
[1761300996279,18.23486505,191.94,191.9,0.69]
[1761300996457,36.02,191.93,191.9,0.69]
[1761300997481,18.83486505,191.94,191.9,0.69]
[1761300997667,5.21050437,191.92,191.9,0.69]
[1761300999265,18.23486505,191.94,191.9,0.69]
[1761300999463,36.02,191.93,191.9,0.69]
[1761300999658,18.83486505,191.94,191.9,0.69]
[1761300999864,36.02,191.93,191.9,0.69]
[1761301000486,5.21050437,191.92,191.9,0.69]
[1761301001685,5.21023289,191.93,191.9,0.69]
[1761301001887,41.23023289,191.93,191.9,0.69]
[1761301004364,5.21023289,191.93,191.9,0.69]
[1761301004564,41.23023289,191.93,191.9,0.69]
[1761301005378,0.6,191.92,191.88,0.71]
[1761301005787,54.25581513,191.93,191.88,0.71]
[1761301006090,36.02,191.92,191.88,0.71]
[1761301006283,5.21077588,191.91,191.88,0.71]
[1761301008590,18.23581513,191.93,191.88,0.71]
[1761301009088,54.25581513,191.93,191.88,0.71]
[1761301010369,18.23581513,191.93,191.88,0.71]
[1761301010577,54.25581513,191.93,191.88,0.71]
[1761301011296,0.6,191.92,191.88,0.71]
[1761301011675,54.85581513,191.93,191.88,0.71]
[1761301012188,18.83581513,191.93,191.88,0.71]
[1761301012392,36.02,191.92,191.88,0.71]
[1761301012783,18.83581513,191.93,191.88,0.71]
[1761301012985,36.02,191.92,191.88,0.71]
[1761301013194,36.62,191.92,191.86,0.71]
[1761301013396,5.81077588,191.91,191.86,0.71]
[1761301013701,5.21077588,191.91,191.86,0.71]
[1761301013884,41.23077588,191.91,191.86,0.71]
[1761301015099,54.85771559,191.91,191.86,0.71]
[1761301015479,18.83771559,191.91,191.86,0.71]
[1761301015669,54.85771559,191.91,191.86,0.71]
[1761301016178,54.25771559,191.91,191.86,0.71]
[1761301016382,0.6,191.9,191.85,1.0]
[1761301017099,0.6,191.9,191.85,1.71]
[1761301017286,5.21131898,191.89,191.85,1.71]
[1761301017487,36.02,191.88,191.85,1.71]
[1761301017684,36.02,191.88,191.85,1.0]